bitfinex-derivatives/quotes_BNBF0:USTF0_20250330
["timestamp","ask_amount","ask_price","bid_price","bid_amount"]
[1743306370932,1.12953107,609.44,608.32,0.28587154]
[1743306371131,0.32818089,609.42,608.32,0.28587154]
[1743306373032,1.12953107,609.41,608.0,0.32894736]
[1743306373234,0.32819704,609.39,608.17,1.0]
[1743306373434,0.32819704,609.39,608.32,0.28590559]
[1743306373630,0.32819704,609.39,608.0,0.32894736]
[1743306373830,0.32819704,609.39,608.17,1.0]
[1743306374435,0.32819704,609.39,608.18,0.28589033]
[1743306375034,1.22598982,609.39,608.18,0.28589033]
[1743306375238,4.81019237,609.39,608.18,0.28589033]
[1743306375429,3.65584217,609.38,608.18,0.28589033]
[1743306375629,0.3282132,609.36,608.18,0.28589033]
[1743306375830,0.3282132,609.36,608.2,1.0]
[1743306376334,0.28591264,609.35,608.2,1.0]
[1743306376530,0.32822936,609.33,608.2,1.0]
[1743306379541,0.28589268,609.32,608.2,1.0]
[1743306379842,0.32824552,609.3,608.2,1.0]
[1743306382444,0.2858962,609.29,608.2,1.0]
[1743306382741,0.3282563,609.28,608.2,1.0]
[1743306383942,1.548,609.27,608.2,1.0]
[1743306384940,0.32826707,609.26,608.2,1.0]
[1743306385439,0.61416914,609.26,608.2,1.0]
[1743306388046,1.297,609.25,608.2,1.0]
[1743306388247,0.32827785,609.24,608.2,1.0]
[1743306389446,0.28591147,609.23,608.2,1.0]
[1743306389646,0.32828863,609.22,608.2,1.0]
[1743306391450,0.28591382,609.21,608.2,1.0]
[1743306391749,0.3282994,609.2,608.2,1.0]
[1743306394545,0.28591616,609.19,608.2,1.0]
[1743306394750,0.32831018,609.18,608.2,1.0]
[1743306400464,0.28593966,609.17,608.2,1.0]
[1743306401460,0.32832096,609.16,608.2,1.0]
[1743306403463,0.28594201,609.15,608.2,1.0]
[1743306403664,0.32833174,609.14,608.2,1.0]
[1743306404867,1.088,609.13,608.2,1.0]
[1743306405167,0.32834252,609.12,608.2,1.0]
[1743306406269,0.28594671,609.11,608.2,1.0]
[1743306406469,0.3283533,609.1,608.2,1.0]
[1743306409263,0.61430236,609.1,608.2,1.0]
[1743306412062,0.3283533,609.1,608.2,1.0]
[1743306423271,1.683,609.09,608.2,1.0]
[1743306426577,1.425,609.08,608.2,1.0]
[1743306437386,1.41890807,609.08,608.2,1.0]
[1743306442489,2.67690807,609.08,608.2,1.0]
[1743306445886,2.67690807,609.08,608.36,1.0]
[1743306450394,1.258,609.08,608.36,1.0]
[1743306478812,2.639,609.08,608.36,1.0]
[1743306486018,2.639,609.08,608.39,2.47085025]
[1743306486214,2.639,609.08,608.5,1.0]
[1743306489817,2.639,609.08,608.64,1.0]
[1743306501929,2.639,609.08,608.77,1.0]
[1743306503823,1.258,609.08,608.77,1.0]
[1743306519235,1.258,609.08,608.9,1.0]
[1743306519431,1.321,609.27,608.9,1.0]
[1743306522937,1.495,609.26,608.9,1.0]
[1743306532447,1.495,609.26,609.03,1.0]
[1743306552056,1.378,609.36,609.03,1.0]
[1743306554662,1.909,609.35,609.03,1.0]
[1743306557157,1.909,609.35,609.02,0.28560291]
[1743306559070,1.909,609.35,608.77,2.47085025]
[1743306560363,1.909,609.35,608.45,2.47085025]
[1743306560564,1.909,609.35,608.78,0.28568028]
[1743306560764,1.909,609.35,608.46,0.32869868]
[1743306560965,1.909,609.35,608.75,1.0]
[1743306561266,1.909,609.35,608.78,0.28568262]
[1743306562270,1.909,609.35,608.75,1.0]
[1743306562464,1.909,609.35,608.78,0.28571663]
[1743306563368,1.909,609.35,608.78,1.28571663]
[1743306565370,1.909,609.35,608.94,1.0]
[1743306566271,1.148,609.34,608.94,1.0]
[1743306574383,1.839,609.33,608.94,1.0]
[1743306597903,3.105,609.33,608.94,1.0]
[1743306599400,3.105,609.33,608.93,0.28564745]
[1743306601204,3.105,609.33,608.71,2.47085025]
[1743306601501,3.105,609.33,608.93,0.28568966]
[1743306601902,3.105,609.33,608.71,2.47085025]
[1743306602104,3.105,609.33,608.79,1.0]
[1743306602306,3.105,609.33,608.87,2.47085025]
[1743306602904,3.105,609.33,608.88,0.2856709]
[1743306604199,3.105,609.33,608.85,2.47085025]
[1743306604402,3.105,609.33,608.88,0.28567324]
[1743306606105,3.105,609.33,608.88,2.75652349]
[1743306607206,3.105,609.33,608.88,2.47085025]
[1743306607402,3.105,609.33,608.88,2.75651997]
[1743306610307,3.105,609.33,608.88,0.28566972]
[1743306613105,3.105,609.33,608.74,2.47085025]
[1743306613507,3.105,609.33,608.88,0.28570959]
[1743306613711,3.105,609.33,608.51,2.47085025]
[1743306614010,3.105,609.33,608.69,1.0]
[1743306614606,3.105,609.33,608.7,0.28572836]
[1743306616311,3.105,609.33,608.46,0.32869868]
[1743306616513,3.105,609.33,608.7,0.28575652]
[1743306616908,3.105,609.33,608.46,0.32869868]
[1743306617107,3.105,609.33,608.64,1.0]
[1743306625622,3.105,609.33,608.8,1.0]
[1743306652940,3.105,609.33,608.96,1.0]
[1743306666356,3.105,609.33,608.99,2.47085025]
[1743306667861,3.105,609.33,608.96,2.47085025]
[1743306668056,3.105,609.33,608.98,1.0]
[1743306678972,3.105,609.33,608.99,2.47085025]
[1743306680668,3.105,609.33,609.04,2.47085025]
[1743306682369,3.105,609.33,609.05,2.47085025]
[1743306684380,3.105,609.33,609.01,2.47085025]
[1743306685182,3.105,609.33,609.12,1.0]
[1743306685579,2.26163927,610.44,609.12,1.0]
[1743306685880,1.32764326,610.42,609.12,1.0]
[1743306686086,0.32765399,610.4,609.12,1.0]
[1743306686792,1.0,610.37,609.12,1.0]
[1743306686990,0.32768083,610.35,609.12,1.0]
[1743306687598,0.28544127,610.34,609.12,1.0]
[1743306687896,0.32769694,610.32,609.12,1.0]
[1743306688497,1.60469694,610.32,609.12,1.0]
[1743306688698,0.28544946,610.31,609.12,1.0]
[1743306688994,3.96410251,610.31,609.12,1.0]
[1743306689197,3.67865305,610.3,609.12,1.0]
[1743306689392,0.32771842,610.28,609.12,1.0]
[1743306690392,1.23063727,610.28,609.12,1.0]
[1743306690798,4.81761002,610.28,609.12,1.0]
[1743306690997,4.5815719,610.27,609.12,1.0]
[1743306691294,0.32773453,610.25,609.12,1.0]
[1743306692097,1.41486656,610.24,609.12,1.0]
[1743306692400,0.32775064,610.22,609.12,1.0]
[1743306692599,1.41486656,610.21,609.12,1.0]
[1743306692797,0.32776676,610.19,609.12,1.0]
[1743306692999,1.41486656,610.18,609.12,1.0]
[1743306693301,0.32778287,610.16,609.12,1.0]
[1743306693492,1.41486656,610.15,609.12,1.0]
[1743306693697,1.74266018,610.14,609.12,1.0]
[1743306694000,1.74266555,610.13,609.12,1.0]
[1743306694201,1.74267092,610.12,609.12,1.0]
[1743306694399,0.32780973,610.11,609.12,1.0]
[1743306694594,1.45477746,610.11,609.12,1.0]
[1743306694896,3.77256287,610.11,609.12,1.0]
[1743306695101,4.80562078,610.1,609.12,1.0]
[1743306695301,4.00647353,610.09,609.12,1.0]
[1743306695600,4.0064789,610.08,609.12,1.0]
[1743306695802,4.00837867,610.07,609.12,1.0]
[1743306696001,1.74270316,610.06,609.12,1.0]
[1743306696203,0.32784198,610.05,609.12,1.0]
[1743306696599,1.12696773,610.04,609.12,1.0]
[1743306696805,0.32785272,610.03,609.12,1.0]
[1743306697303,1.45482045,610.03,609.12,1.0]
[1743306697705,0.32785272,610.03,609.12,1.0]
[1743306707004,1.617,610.02,609.12,1.0]
[1743306707206,0.32786347,610.01,609.12,1.0]
[1743306707509,0.32786347,610.01,609.11,0.28549161]
[1743306708106,1.12696773,610.0,609.11,0.28549161]
[1743306708403,0.32787422,609.99,609.11,0.28549161]
[1743306708603,1.45484195,609.99,609.11,0.28549161]
[1743306709203,1.12696773,609.98,608.63,2.47085025]
[1743306709409,0.32788497,609.97,608.93,1.0]
[1743306709609,0.32788497,609.97,609.09,0.28558884]
[1743306709809,1.12696773,609.96,608.63,2.47085025]
[1743306710009,0.32789572,609.95,608.91,1.0]
[1743306710205,1.12696773,609.94,608.91,1.0]
[1743306710411,0.32790648,609.93,608.91,1.0]
[1743306710808,0.32790648,609.93,608.92,0.28556189]
[1743306711912,1.45487421,609.93,608.92,0.28556189]
[1743306712410,1.45487421,609.93,608.91,1.0]
[1743306712614,0.32790648,609.93,608.92,0.28559236]
[1743306715215,0.32790648,609.93,608.63,2.47085025]
[1743306715409,0.32790648,609.93,608.83,1.0]
[1743306715610,0.2856158,609.92,608.92,0.2856158]
[1743306715915,0.32791723,609.91,608.58,2.47085025]
[1743306716113,0.32791723,609.91,608.83,1.0]
[1743306716511,0.32791723,609.91,608.84,0.28559705]
[1743306718415,0.32791723,609.91,608.83,1.0]
[1743306718611,0.32791723,609.91,608.84,0.28556072]
[1743306721411,0.32791723,609.91,608.83,1.0]
[1743306721811,1.233,609.9,608.83,1.0]
[1743306722013,0.32792798,609.89,608.83,1.0]
[1743306722512,0.32792798,609.89,608.96,1.0]
[1743306727115,0.32792798,609.89,609.1,1.0]
[1743306730621,1.303,609.88,609.1,1.0]
[1743306746834,0.32792798,609.89,609.1,1.0]
[1743306749134,1.355,609.88,609.1,1.0]
[1743306749334,2.632,609.88,609.1,1.0]
[1743306759038,2.632,609.88,609.1,3.47085025]
[1743306760539,2.632,609.88,609.1,2.47085025]
[1743306760742,2.632,609.88,609.09,0.28551855]
[1743306763249,2.632,609.88,608.98,2.47085025]
[1743306763449,2.632,609.88,609.08,1.0]
[1743306765344,1.277,609.88,609.08,1.0]
[1743306768951,1.549,609.87,609.08,1.0]
[1743306776357,1.746,609.86,609.08,1.0]
[1743306793768,1.746,609.86,609.44,1.0]
[1743306798261,3.83811843,610.58,609.44,1.0]
[1743306798465,0.32756813,610.56,609.44,1.0]
[1743306798962,1.22914751,610.56,609.44,1.0]
[1743306799168,1.45567442,610.56,609.44,1.0]
[1743306799467,1.43332659,610.55,609.44,1.0]
[1743306799669,0.32758423,610.53,609.44,1.0]
[1743306801268,1.795,610.52,609.44,1.0]
[1743306801564,0.32760032,610.5,609.44,1.0]
[1743306802771,0.28533127,610.49,609.44,1.0]
[1743306802969,0.32761106,610.48,609.44,1.0]
[1743306805680,0.28533244,610.47,609.44,1.0]
[1743306805881,0.32762179,610.46,609.44,1.0]
[1743306808978,0.28533127,610.45,609.44,1.0]
[1743306809179,0.32763252,610.44,609.44,1.0]
[1743306811679,0.61296379,610.44,609.44,1.0]
[1743306814883,2.44096379,610.44,609.44,1.0]
[1743306816583,3.73596379,610.44,609.44,1.0]
[1743306817288,3.45063252,610.44,609.44,1.0]
[1743306832702,3.73597665,610.44,609.44,1.0]
[1743306833607,3.73597665,610.44,609.43,0.28534413]
[1743306833912,1.40685843,610.43,609.14,2.47085025]
[1743306834110,2.52945963,610.43,609.35,0.28539445]
[1743306834405,0.32764862,610.41,609.14,2.47085025]
[1743306834605,0.32764862,610.41,609.23,1.0]
[1743306834812,0.32764862,610.41,609.35,0.28540264]
[1743306835209,0.32764862,610.41,609.23,1.0]
[1743306835406,0.32764862,610.41,609.35,0.28540615]
[1743306835613,0.28541668,610.4,609.35,0.28540615]
[1743306835910,0.32766473,610.38,609.23,1.0]
[1743306836614,0.32766473,610.38,609.24,0.28541668]
[1743306837308,1.0,610.37,609.24,0.28541668]
[1743306837913,0.32768083,610.35,609.24,0.28541668]
[1743306838311,5.54134584,610.35,609.24,0.28541668]
[1743306838511,8.788469,610.34,608.73,2.47085025]
[1743306838711,0.32769694,610.32,609.07,1.0]
[1743306838913,1.22577969,610.32,609.07,1.0]
[1743306839111,4.80035242,610.32,609.07,1.0]
[1743306839309,4.55789811,610.31,609.07,1.0]
[1743306839514,0.32771305,610.29,609.07,1.0]
[1743306839713,0.32771305,610.29,609.08,0.28548341]
[1743306840310,1.119,610.28,609.08,0.28548341]
[1743306840708,0.32772916,610.26,609.08,0.28548341]
[1743306841607,1.22581191,610.26,609.08,0.28548341]
[1743306841810,3.24670526,610.26,609.08,0.28548341]
[1743306842011,1.40739611,610.25,609.08,0.28548341]
[1743306842214,0.32774527,610.23,609.08,0.28548341]
[1743306846713,0.28556541,610.22,609.08,0.28548341]
[1743306847314,0.32776138,610.2,609.08,0.28548341]
[1743306850213,0.32776138,610.2,608.46,0.32869868]
[1743306850415,0.32776138,610.2,609.01,1.0]
[1743306850715,0.28558416,610.19,609.01,1.0]
[1743306850915,0.3277775,610.17,609.01,1.0]
[1743306853715,0.28551152,610.16,609.01,1.0]
[1743306853920,0.32779362,610.14,609.01,1.0]
[1743306859821,0.2855408,610.13,608.82,0.28553963]
[1743306860038,1.0,610.08,608.82,0.28553963]
[1743306860821,0.30148382,610.07,608.82,0.28553963]
[1743306861118,1.0,610.08,608.82,0.28553963]
[1743306861518,1.1226012,610.07,608.82,0.28553963]
[1743306861719,0.3278366,610.06,608.82,0.28553963]
[1743306862022,1.4504378,610.06,608.82,0.28553963]
[1743306862225,1.4504378,610.06,608.46,0.32869868]
[1743306862433,2.34749045,610.06,608.77,1.0]
[1743306862723,0.28564745,610.05,608.82,0.28564745]
[1743306862923,1.40824865,610.05,608.82,0.28564745]
[1743306863123,2.30338204,610.05,608.82,0.28564745]
[1743306863422,5.95067493,610.05,608.82,0.28564745]
[1743306863622,2.01773459,610.04,608.82,0.28564745]
[1743306864220,1.40280496,610.03,608.82,0.28564745]
[1743306864418,1.40280496,610.02,608.82,0.28564745]
[1743306864624,1.40280496,610.01,608.82,0.28564745]
[1743306864825,1.40280496,610.0,608.82,0.28564745]
[1743306865017,1.0,610.01,608.82,0.28564745]
[1743306865018,1.40280496,609.99,608.82,0.28564745]
[1743306865324,1.40280496,609.98,608.46,0.32869868]
[1743306865523,1.40280496,609.97,608.79,0.2856791]
[1743306865723,1.40280496,609.96,608.79,0.2856791]
[1743306865922,1.40280496,609.95,608.46,0.32869868]
[1743306866121,1.40280496,609.94,608.64,1.0]
[1743306866320,0.32791185,609.92,608.64,1.0]
[1743306866518,1.40280496,609.91,608.65,0.28566386]
[1743306866826,0.32792798,609.89,608.65,1.28566386]
[1743306867025,1.40280496,609.88,608.65,1.28566386]
[1743306867226,0.32794411,609.86,608.65,1.28566386]
[1743306867421,1.40280496,609.85,608.65,1.28566386]
[1743306867626,1.40021679,609.84,608.65,1.28566386]
[1743306868226,1.40021679,609.84,608.65,1.0]
[1743306868426,2.52281799,609.83,608.65,1.0]
[1743306868727,0.327971,609.81,608.65,1.28567441]
[1743306869121,1.40021679,609.8,608.65,1.28567441]
[1743306869324,1.40021679,609.79,608.65,0.28567441]
[1743306869628,2.52281799,609.78,608.65,0.28567441]
[1743306869828,1.72820931,609.77,608.65,0.28567441]
[1743306870024,0.32799252,609.77,608.65,0.28567441]
[1743306870327,2.52158763,609.76,608.65,0.28567441]
[1743306870523,0.32800865,609.74,608.65,0.28567441]
[1743306870827,1.39898643,609.73,608.65,0.28567441]
[1743306871027,0.32802479,609.71,608.65,0.28567441]
[1743306871228,1.39898643,609.7,608.46,0.32869868]
[1743306871428,1.72702198,609.69,608.57,1.0]
[1743306871632,1.39898643,609.68,608.65,0.28572953]
[1743306871826,1.72703275,609.67,608.46,0.32869868]
[1743306872026,1.72596329,609.66,608.57,1.0]
[1743306872223,4.90786751,609.7,608.57,1.0]
[1743306872224,0.32805708,609.65,608.57,1.0]
[1743306872626,0.61378075,609.65,608.58,0.28572367]
[1743306872823,1.1226012,609.64,608.58,0.28572367]
[1743306873123,0.32806784,609.63,608.58,0.28572367]
[1743306873520,1.1226012,609.62,608.58,0.28572367]
[1743306873723,0.3280786,609.61,608.58,0.28572367]
[1743306874225,1.1226012,609.6,608.58,0.28572367]
[1743306874427,1.45069057,609.59,608.58,0.28572367]
[1743306874629,0.32809475,609.58,608.58,0.28572367]
[1743306875231,1.1226012,609.57,608.58,0.28572367]
[1743306875531,0.32810551,609.56,608.58,0.28572367]
[1743306875932,1.1226012,609.55,608.58,0.28572367]
[1743306876126,0.32811628,609.54,608.58,0.28572367]
[1743306876325,1.45071748,609.54,608.58,0.28572367]
[1743306876531,1.39610723,609.53,608.58,0.28572367]
[1743306876834,1.39610723,609.52,608.58,0.28572367]
[1743306877129,0.32813243,609.51,608.58,0.28572367]
[1743306877433,1.39610723,609.5,608.58,0.28572367]
[1743306877629,0.3281432,609.49,608.58,0.28572367]
[1743306877830,1.4507444,609.49,608.58,0.28572367]
[1743306878227,1.1226012,609.48,608.58,0.28572367]
[1743306878631,0.32815396,609.47,608.58,0.28572367]
[1743306878833,1.45075516,609.47,608.58,0.28572367]
[1743306879334,1.45075516,609.47,606.39,2.47085025]
[1743306879335,1.45075516,609.47,607.24,2.47085025]
[1743306879535,0.32815396,609.47,608.51,0.28594671]
[1743306879933,0.32815396,609.47,607.35,0.32929941]
[1743306880134,0.32815396,609.47,608.43,1.0]
[1743306880337,0.32815396,609.47,608.48,0.28594083]
[1743306880536,1.1226012,609.46,607.39,2.47085025]
[1743306880732,1.1226012,609.46,608.37,1.0]
[1743306881335,1.1226012,609.45,608.37,1.0]
[1743306881532,0.32817012,609.44,608.38,0.28582458]
[1743306882038,1.1226012,609.43,608.38,0.28582458]
[1743306882238,0.32818089,609.42,608.38,0.28582458]
[1743306882842,1.1226012,609.41,608.38,0.28582458]
[1743306883038,0.32819166,609.4,608.38,0.28582458]
[1743306883436,1.1226012,609.39,607.35,0.32929941]
[1743306883635,0.32820243,609.38,608.35,1.0]
[1743306884037,1.1226012,609.37,608.35,1.0]
[1743306884238,0.3282132,609.36,608.35,1.0]
[1743306884641,0.3282132,609.36,608.36,0.28583749]
[1743306885141,1.4508144,609.36,608.36,0.28583749]
[1743306886036,0.3282132,609.36,608.36,0.28583749]
[1743306886236,0.3282132,609.36,608.35,1.0]
[1743306887642,0.3282132,609.36,608.36,0.28581519]
[1743306889245,1.048,609.35,608.35,1.0]
[1743306889642,1.048,609.35,608.36,0.28579758]
[1743306892350,1.048,609.35,608.35,1.0]
[1743306892547,1.048,609.35,608.36,0.28581167]
[1743306894348,1.029,609.34,608.36,0.28581167]
[1743306895250,1.029,609.34,608.35,1.0]
[1743306895648,0.32822936,609.33,608.36,0.28584336]
[1743306898252,0.32822936,609.33,607.53,2.47085025]
[1743306898555,0.32822936,609.33,608.33,1.0]
[1743306898748,0.2859608,609.32,608.33,1.0]
[1743306901358,5.07630204,609.33,608.33,1.0]
[1743306901559,0.28587741,609.31,608.33,1.0]
[1743306902756,0.32825091,609.29,608.33,1.0]
[1743306904562,0.28589385,609.28,608.33,1.0]
[1743306904760,0.32826707,609.26,608.33,1.0]
[1743306907264,1.037,609.25,608.33,1.0]
[1743306907463,0.32827785,609.24,608.33,1.0]
[1743306910971,0.32827785,609.24,608.22,0.28588915]
[1743306911171,1.224,609.23,608.22,0.28588915]
[1743306911471,0.32828863,609.22,608.22,0.28588915]
[1743306913977,0.32828863,609.22,608.22,1.28588915]
[1743306916374,0.32828863,609.22,608.22,1.0]
[1743306916571,0.32828863,609.22,608.22,1.28589737]
[1743306919379,0.32828863,609.22,608.22,1.0]
[1743306919579,0.32828863,609.22,608.22,1.28588798]
[1743306922280,0.32828863,609.22,608.22,1.0]
[1743306922575,0.32828863,609.22,608.22,1.28588798]
[1743306925277,0.32828863,609.22,608.22,1.0]
[1743306925577,0.32828863,609.22,608.22,1.28587154]
[1743306928387,0.32828863,609.22,608.22,1.0]
[1743306928787,0.32828863,609.22,608.22,1.28586919]
[1743306930790,1.282,609.21,608.22,1.28586919]
[1743306931387,1.282,609.21,608.22,1.0]
[1743306931585,1.282,609.21,608.22,1.28587389]
[1743306933989,0.3282994,609.2,608.22,1.28587389]
[1743306934389,0.3282994,609.2,608.22,1.0]
[1743306934894,0.3282994,609.2,608.22,1.28588798]
[1743306937292,0.3282994,609.2,608.22,1.0]
[1743306937793,0.3282994,609.2,608.22,1.28588798]
[1743306939897,1.9492994,609.2,608.22,1.28588798]
[1743306940400,1.9492994,609.2,608.22,1.0]
[1743306940595,1.9492994,609.2,608.22,1.28588915]
[1743306943300,1.9492994,609.2,608.22,1.0]
[1743306943697,1.9492994,609.2,608.22,1.28588915]
[1743306946299,1.9492994,609.2,608.22,1.0]
[1743306946706,1.9492994,609.2,608.22,1.28590794]
[1743306946996,1.9492994,609.2,608.22,0.28590794]
[1743306947700,3.3502994,609.2,608.22,0.28590794]
[1743306948001,2.53684788,609.19,608.22,0.28590794]
[1743306948298,0.32831557,609.17,608.22,0.28590794]
[1743306949398,0.32831557,609.17,608.1,1.0]
[1743306949798,0.2859514,609.16,608.11,0.2859514]
[1743306950094,0.32832635,609.15,608.11,0.2859514]
[1743306952399,0.32832635,609.15,607.48,2.47085025]
[1743306952598,0.28602779,609.14,608.11,0.28602779]
[1743306952901,0.32833713,609.13,607.5,0.3292181]
[1743306953094,0.32833713,609.13,608.1,1.0]
[1743306954204,0.32833713,609.13,608.11,0.28595728]
[1743306954807,0.32833713,609.13,608.14,1.0]
[1743306964210,1.797,609.12,608.14,1.0]
[1743306964412,0.32834791,609.11,608.14,1.0]
[1743306978523,1.194,609.1,608.14,1.0]
[1743306988436,0.32835869,609.09,608.14,1.0]
[1743306994533,1.684,609.08,608.14,1.0]
[1743306997040,1.684,609.08,608.14,3.47085025]
[1743306997244,3.329,609.08,608.14,3.47085025]
[1743306998443,3.329,609.08,608.14,1.0]
[1743307005549,3.329,609.08,608.14,3.47085025]
[1743307006645,3.329,609.08,608.16,2.47085025]
[1743307007048,0.32836948,609.07,608.16,2.47085025]
[1743307007445,1.45770066,609.07,608.16,2.47085025]
[1743307008049,0.32836948,609.07,608.16,2.47085025]
[1743307008249,0.32836948,609.07,608.13,0.28594553]
[1743307008452,0.32836948,609.07,608.13,1.28594553]
[1743307008646,0.32836948,609.07,608.13,0.28594553]
[1743307009250,1.45754209,609.07,608.13,0.28594553]
[1743307009455,1.45754209,609.07,607.93,2.47085025]
[1743307009752,1.45754209,609.07,608.13,0.28598195]
[1743307010149,1.45754209,609.07,607.92,2.47085025]
[1743307010352,1.45754209,609.07,608.07,1.0]
[1743307010952,1.45754209,609.07,608.08,0.28596668]
[1743307011152,2.87162167,609.07,608.08,0.28596668]
[1743307011553,1.45754209,609.07,608.08,0.28596668]
[1743307012451,1.45754209,609.07,607.64,2.47085025]
[1743307012649,1.45754209,609.07,608.05,1.0]
[1743307012854,1.45754209,609.07,608.08,0.28599135]
[1743307014247,2.87113751,609.07,608.08,0.28599135]
[1743307015453,2.87113751,609.07,608.05,1.0]
[1743307015655,2.87113751,609.07,608.08,0.28602191]
[1743307016646,4.67610495,609.07,608.08,0.28602191]
[1743307016850,1.41359542,609.06,608.08,0.28602191]
[1743307017050,0.32838026,609.05,608.08,0.28602191]
[1743307018355,0.32838026,609.05,607.65,0.32913683]
[1743307018555,0.32838026,609.05,608.05,1.0]
[1743307024757,1.126,609.04,608.05,1.0]
[1743307024956,0.32839104,609.03,608.05,1.0]
[1743307025158,1.56139104,609.03,608.05,1.0]
[1743307048172,0.32839104,609.03,608.05,1.0]
[1743307050674,1.207,609.02,608.05,1.0]
[1743307050879,0.32840183,609.01,608.05,1.0]
[1743307053778,1.055,609.0,608.05,1.0]
[1743307053983,0.32841261,608.99,608.05,1.0]
[1743307060386,0.32841261,608.99,608.05,3.47085025]
[1743307060583,0.32841261,608.99,608.05,2.47085025]
[1743307061984,0.32841261,608.99,608.04,0.28599841]
[1743307063390,0.32841261,608.99,607.82,2.47085025]
[1743307063692,0.32841261,608.99,607.95,1.0]
[1743307067993,1.45758522,608.99,607.95,1.0]
[1743307068187,2.86853252,608.99,607.95,1.0]
[1743307068385,1.45758522,608.99,607.95,1.0]
[1743307068591,1.12917261,608.98,607.95,1.0]
[1743307068795,0.3284234,608.97,607.95,1.0]
[1743307069693,1.45759601,608.97,607.95,1.0]
[1743307070495,0.3284234,608.97,607.95,1.0]
[1743307070995,2.86893008,608.97,607.95,1.0]
[1743307071292,0.3284234,608.97,607.95,1.0]
[1743307073094,1.73975747,608.97,607.95,1.0]
[1743307079001,0.3284234,608.97,607.95,1.0]
[1743307079198,1.73975747,608.97,607.95,1.0]
[1743307079698,0.3284234,608.97,607.95,1.0]
[1743307080801,3.26038868,608.97,607.95,1.0]
[1743307081005,1.41068157,608.96,607.95,1.0]
[1743307081200,0.32843418,608.95,607.95,1.0]
[1743307082006,1.67243418,608.95,607.95,1.0]
[1743307082705,3.08311575,608.95,607.95,1.0]
[1743307083505,1.41068157,608.94,607.95,1.0]
[1743307083698,0.32844497,608.93,607.95,1.0]
[1743307085805,1.73900189,608.93,607.95,1.0]
[1743307088906,1.73900189,608.93,607.94,0.28603719]
[1743307090307,0.32844497,608.93,607.8,2.47085025]
[1743307090610,3.99524554,608.93,607.94,0.28605483]
[1743307090807,1.41030791,608.92,607.94,0.28605483]
[1743307091012,0.32844497,608.93,607.83,1.0]
[1743307091013,0.32845576,608.91,607.83,1.0]
[1743307091411,1.73876367,608.91,607.83,1.0]
[1743307092209,1.73876367,608.91,607.84,0.28605365]
[1743307092514,0.32845576,608.91,607.84,0.28605365]
[1743307093111,1.73876367,608.91,607.84,0.28605365]
[1743307093515,1.73876367,608.91,607.85,1.0]
[1743307093909,0.32845576,608.91,607.85,1.0]
[1743307106824,1.045,608.9,607.85,1.0]
[1743307107024,0.32846655,608.89,607.85,1.0]
[1743307110730,0.32846655,608.89,607.99,1.0]
[1743307115038,1.3,608.88,607.99,1.0]
[1743307119336,1.3,608.88,608.14,1.0]
[1743307129047,3.66069598,609.44,608.14,1.0]
[1743307129250,0.32818089,609.42,608.14,1.0]
[1743307129855,0.28586449,609.41,608.14,1.0]
[1743307130155,0.32819166,609.4,608.14,1.0]
[1743307130457,2.17319166,609.4,608.14,1.0]
[1743307131353,1.431,609.39,608.14,1.0]
[1743307131554,0.32820243,609.38,608.14,1.0]
[1743307132264,1.45737504,609.38,608.14,1.0]
[1743307132455,0.32820243,609.38,608.14,1.0]
[1743307132658,0.28588798,609.37,608.14,1.0]
[1743307133162,0.32821859,609.35,608.14,1.0]
[1743307135759,0.28589737,609.34,608.14,1.0]
[1743307135961,0.32823475,609.32,608.14,1.0]
[1743307138859,0.2858962,609.31,608.14,1.0]
[1743307139064,0.32824552,609.3,608.14,1.0]
[1743307148469,0.32824552,609.3,608.27,1.0]
[1743307153067,1.103,609.29,608.27,1.0]
[1743307153268,0.3282563,609.28,608.27,1.0]
[1743307155970,1.545,609.27,608.27,1.0]